bitfinex/quotes_SOLUSD_20250310
["timestamp","ask_amount","ask_price","bid_price","bid_amount"]
[1741609804508,37.35186762,129.11,129.06,37.35186762]
[1741609804723,37.35186762,129.12,129.06,37.35186762]
[1741609805031,37.35186762,129.13,129.08,37.35186762]
[1741609805406,37.35186762,129.14,129.08,37.35186762]
[1741609805807,37.35186762,129.16,129.1,37.35186762]
[1741609806002,18.64964886,129.17,129.11,37.35186762]
[1741609806003,37.35186762,129.17,129.11,37.35186762]
[1741609806526,118.45186762,129.18,129.12,37.35186762]
[1741609806726,37.35186762,129.18,129.13,37.35186762]
[1741609806899,37.35186762,129.18,129.12,37.35186762]
[1741609807098,37.35186762,129.18,129.1,7.8849]
[1741609807099,81.1,129.2,129.13,37.35186762]
[1741609807333,37.35186762,129.18,129.12,37.35186762]
[1741609807518,37.35186762,129.18,129.13,37.35186762]
[1741609807827,37.35186762,129.18,129.12,37.35186762]
[1741609808032,37.35186762,129.17,129.12,41.3307269]
[1741609808236,37.35186762,129.16,129.12,3.97885928]
[1741609808540,37.35186762,129.16,129.1,45.23676762]
[1741609808834,37.35186762,129.16,129.1,7.8849]
[1741609809003,37.35186762,129.16,129.06,37.38186762]
[1741609809004,37.35186762,129.13,129.06,8.2013]
[1741609809333,37.35186762,129.13,129.08,37.35186762]
[1741609809520,37.35186762,129.13,129.07,37.35186762]
[1741609809719,37.35186762,129.13,129.08,37.35186762]
[1741609809934,81.38432314,129.17,129.09,37.35186762]
[1741609810134,37.35186762,129.14,129.09,37.35186762]
[1741609810302,37.35186762,129.15,129.09,37.35186762]
[1741609810503,37.35186762,129.16,129.11,37.35186762]
[1741609811130,37.35186762,129.17,129.11,37.35186762]
[1741609811629,37.35186762,129.16,129.1,37.35186762]
[1741609811818,37.35186762,129.18,129.12,37.35186762]
[1741609812516,37.35186762,129.2,129.14,37.35186762]
[1741609812826,18.933972,129.21,129.14,37.35186762]
[1741609812827,37.35186762,129.19,129.14,37.35186762]
[1741609813004,37.35186762,129.18,129.13,38.98176762]
[1741609813206,37.35186762,129.18,129.13,1.6299]
[1741609813501,8.02362314,129.21,129.13,38.98176762]
[1741609813815,26.673272,129.21,129.13,38.98176762]
[1741609814024,37.35186762,129.18,129.13,38.98176762]
[1741609814330,37.35186762,129.18,129.13,1.6299]
[1741609814831,37.35186762,129.18,129.13,38.98176762]
[1741609815135,7.7405,129.2,129.15,37.35186762]
[1741609815136,37.35186762,129.2,129.15,37.35186762]
[1741609815303,37.35186762,129.2,129.14,37.35186762]
[1741609815933,37.35186762,129.19,129.14,37.35186762]
[1741609816119,37.35186762,129.19,129.13,38.98176762]
[1741609817119,37.35186762,129.2,129.14,37.35186762]
[1741609817309,37.35186762,129.19,129.14,37.35186762]
[1741609817627,37.35186762,129.2,129.14,37.35186762]
[1741609817825,18.996972,129.23,129.15,37.35186762]
[1741609818015,37.35186762,129.21,129.16,37.35186762]
[1741609818623,37.35186762,129.21,129.15,37.35186762]
[1741609819936,37.35186762,129.21,129.16,37.35186762]
[1741609820231,37.35186762,129.21,129.15,37.35186762]
[1741609820430,37.35186762,129.2,129.15,37.35186762]
[1741609821510,37.41486762,129.21,129.15,37.35186762]
[1741609821724,37.41486762,129.21,129.16,37.35186762]
[1741609822213,37.35186762,129.2,129.15,37.35186762]
[1741609822422,23.43994533,129.2,129.15,23.43994533]
[1741609823515,23.50294533,129.21,129.16,23.43994533]
[1741609823925,23.43994533,129.2,129.15,23.43994533]
[1741609826611,0.063,129.21,129.13,1.6299]
[1741609826846,0.063,129.21,129.16,23.43994533]
[1741609826847,23.50294533,129.21,129.16,23.43994533]
[1741609827339,23.43994533,129.2,129.13,1.6299]
[1741609827540,23.43994533,129.2,129.15,23.43994533]
[1741609827935,23.50294533,129.21,129.16,23.43994533]
[1741609828117,0.063,129.21,129.18,23.43994533]
[1741609828315,0.063,129.21,129.17,23.43994533]
[1741609828842,23.50294533,129.21,129.16,23.43994533]
[1741609829136,0.063,129.21,129.17,23.43994533]
[1741609830319,0.063,129.21,129.13,1.6299]
[1741609830641,0.063,129.21,129.17,23.43994533]
[1741609831132,0.063,129.21,129.19,23.43994533]
[1741609831328,0.063,129.21,129.2,23.43994533]
[1741609831643,0.063,129.23,129.22,20.0]
[1741609831843,0.063,129.23,129.22,43.43994533]
[1741609832014,0.063,129.23,129.22,49.8145946]
[1741609832222,0.063,129.25,129.22,49.8145946]
[1741609832540,0.063,129.25,129.24,23.43994533]
[1741609835028,0.063,129.25,129.24,46.87989066]
[1741609835747,0.063,129.25,129.24,50.83302877]
[1741609837418,0.063,129.25,129.24,52.49092877]
[1741609837922,0.063,129.25,129.24,58.91852877]
[1741609838941,0.063,129.33,129.28,21.5134]
[1741609839130,0.063,129.33,129.32,23.43994533]
[1741609839532,0.063,129.33,129.28,21.5134]
[1741609839834,23.50294533,129.33,129.28,43.43994533]
[1741609840033,23.50294533,129.33,129.28,23.43994533]
[1741609840241,23.43994533,129.32,129.27,23.43994533]
[1741609840851,23.50294533,129.33,129.28,23.43994533]
[1741609841444,23.43994533,129.3,129.25,1.5333]
[1741609841631,23.43994533,129.3,129.25,23.43994533]
[1741609842152,23.43994533,129.32,129.27,23.43994533]
[1741609842352,42.29475576,129.33,129.28,23.43994533]
[1741609842541,42.29475576,129.33,129.27,23.43994533]
[1741609842743,23.43994533,129.32,129.27,23.43994533]
[1741609842953,23.43994533,129.32,129.26,23.43994533]
[1741609843250,23.43994533,129.32,129.27,23.43994533]
[1741609843459,42.29475576,129.33,129.27,23.43994533]
[1741609843838,42.29475576,129.33,129.28,23.43994533]
[1741609844543,23.50294533,129.33,129.28,23.43994533]
[1741609844741,23.43994533,129.31,129.26,23.43994533]
[1741609845144,23.43994533,129.32,129.27,23.43994533]
[1741609845879,23.50294533,129.33,129.28,23.43994533]
[1741609846432,0.063,129.33,129.28,23.43994533]
[1741609846748,0.063,129.33,129.24,27.39308344]
[1741609846749,0.063,129.33,129.3,23.43994533]
[1741609846951,0.063,129.32,129.3,23.43994533]
[1741609848437,0.063,129.32,129.31,23.43994533]
[1741609848638,0.063,129.32,129.3,23.43994533]
[1741609850544,0.063,129.32,129.31,23.43994533]
[1741609853047,0.063,129.33,129.31,27.33916776]
[1741609853340,0.063,129.36,129.31,27.33916776]
[1741609853341,0.063,129.36,129.35,20.0]
[1741609853552,0.063,129.39,129.35,66.87989066]
[1741609853753,0.063,129.39,129.38,23.43994533]
[1741609853960,0.063,129.39,129.35,20.0]
[1741609854164,0.063,129.39,129.36,23.43994533]
[1741609854467,0.063,129.39,129.35,43.43994533]
[1741609854667,0.063,129.39,129.34,23.43994533]
[1741609854875,23.50294533,129.39,129.34,23.43994533]
[1741609855380,23.43994533,129.38,129.33,23.43994533]
[1741609855539,23.43994533,129.37,129.32,23.43994533]
[1741609855895,23.43994533,129.36,129.3,3.92983952]
[1741609856165,31.17024533,129.36,129.31,23.43994533]
[1741609856474,45.14591224,129.36,129.31,37.41561224]
[1741609856666,37.41561224,129.35,129.3,37.41561224]
[1741609856968,37.41561224,129.36,129.31,37.41561224]
[1741609857167,44.04263538,129.37,129.32,37.41561224]
[1741609857679,56.34958424,129.36,129.29,3.77937239]
[1741609857890,37.69993538,129.34,129.29,37.41561224]
[1741609858373,81.1,129.36,129.32,37.41561224]
[1741609858581,6.48486157,129.37,129.32,37.41561224]
[1741609858755,6.3427,129.37,129.33,37.41561224]
[1741609858950,6.3727,129.37,129.32,37.41561224]
[1741609859151,51.51821224,129.37,129.32,37.41561224]
[1741609859351,51.51821224,129.37,129.31,37.41561224]
[1741609859559,6.3727,129.37,129.33,37.41561224]
[1741609859755,14.1024,129.37,129.33,37.41561224]
[1741609859960,6.3727,129.37,129.33,37.41561224]
[1741609860147,0.03,129.37,129.33,37.41561224]
[1741609860677,0.03,129.37,129.32,37.41561224]
[1741609861055,37.41561224,129.34,129.29,20.0]
[1741609861255,37.41561224,129.33,129.28,37.47861224]
[1741609861479,0.03,129.37,129.3,37.41561224]
[1741609861655,0.03,129.37,129.32,37.41561224]
[1741609861854,0.03,129.37,129.33,37.41561224]
[1741609862575,0.03,129.37,129.34,37.41561224]
[1741609862879,0.03,129.37,129.33,37.41561224]
[1741609863256,0.03,129.37,129.32,37.41561224]
[1741609863572,0.03,129.37,129.33,37.41561224]
[1741609863775,0.03,129.37,129.35,37.41561224]
[1741609863949,0.03,129.37,129.36,37.41561224]
[1741609864792,0.03,129.37,129.33,1.5588]
[1741609865083,0.03,129.37,129.35,37.41561224]
[1741609865279,0.03,129.37,129.36,37.41561224]
[1741609865484,0.03,129.37,129.36,74.83122448]
[1741609865683,0.03,129.37,129.36,37.41561224]
[1741609866551,0.03,129.37,129.36,74.83122448]
[1741609867078,0.03,129.37,129.36,37.41561224]
[1741609868163,0.03,129.37,129.36,74.83122448]
[1741609870077,0.03,129.37,129.36,37.41561224]
[1741609870678,0.03,129.37,129.35,57.41561224]
[1741609870891,0.03,129.37,129.36,37.41561224]
[1741609872093,0.03,129.37,129.36,74.83122448]
[1741609873493,0.03,129.37,129.36,37.41561224]
[1741609873786,0.03,129.37,129.35,20.0]
[1741609874008,0.03,129.37,129.36,37.41561224]
[1741609874801,0.03,129.37,129.36,74.83122448]
[1741609878284,0.03,129.37,129.36,66.6949816]
[1741609878792,0.03,129.37,129.36,43.3474908]
[1741609878976,0.03,129.37,129.35,23.3474908]
[1741609879695,0.03,129.37,129.34,23.3474908]
[1741609880078,0.03,129.37,129.35,23.3474908]
[1741609880914,0.03,129.37,129.36,23.3474908]
[1741609881086,0.03,129.37,129.36,43.3474908]
[1741609881786,0.03,129.37,129.36,20.0]
[1741609881964,0.03,129.37,129.36,43.3474908]
[1741609882367,0.03,129.37,129.33,11.63689787]
[1741609882368,0.03,129.37,129.35,23.3474908]
[1741609882577,0.03,129.37,129.34,23.3474908]
[1741609883877,0.03,129.37,129.34,23.4104908]
[1741609884108,0.03,129.37,129.35,23.3474908]
[1741609884983,0.03,129.37,129.36,23.3474908]
[1741609887408,0.03,129.37,129.34,0.063]
[1741609887606,0.03,129.37,129.36,23.3474908]
[1741609887906,0.03,129.37,129.36,43.3474908]
[1741609888111,0.03,129.37,129.36,66.6949816]
[1741609888811,0.03,129.37,129.36,43.3474908]
[1741609890611,0.03,129.37,129.36,20.0]
[1741609890784,0.03,129.37,129.36,43.3474908]
[1741609895701,0.03,129.37,129.36,43.4104908]
[1741609896489,0.03,129.37,129.36,0.063]
[1741609897497,42.3114628,129.37,129.36,0.063]
[1741609897696,50.0411628,129.37,129.36,0.063]
[1741609898431,0.14216157,129.35,129.34,0.063]
[1741609898607,123.3814628,129.35,129.34,0.063]
[1741609898916,42.2814628,129.35,129.34,0.063]
[1741609899118,42.2814628,129.35,129.34,0.0001]
[1741609899291,0.14216157,129.33,129.31,0.063]
[1741609899617,18.933972,129.31,129.28,0.063]
[1741609899819,42.13930123,129.29,129.28,0.063]
[1741609899990,42.2814628,129.29,129.28,0.063]
[1741609900188,48.4235628,129.29,129.28,0.063]
[1741609900943,48.4235628,129.29,129.23,0.063]
[1741609901208,0.28432314,129.25,129.23,0.063]
[1741609901411,23.48965237,129.25,129.23,0.063]
[1741609901727,0.28432314,129.25,129.23,0.063]
[1741609902107,23.63181394,129.25,129.23,0.063]
[1741609902313,37.7611559,129.25,129.23,0.063]
[1741609902999,0.28432314,129.25,129.23,0.063]
[1741609903318,18.933972,129.24,129.23,0.063]
[1741609903495,93.88763752,129.24,129.23,0.063]
[1741609904004,0.28432314,129.22,129.19,0.063]
[1741609904209,37.7611559,129.2,129.19,0.063]
[1741609904712,0.28432314,129.2,129.19,0.063]
[1741609905815,64.15070476,129.2,129.19,0.063]
[1741609906117,18.933972,129.19,129.16,0.03]
[1741609906325,56.41080476,129.17,129.16,0.03]
[1741609907807,33.233972,129.16,129.15,0.063]
[1741609908014,77.14050476,129.16,129.15,0.063]
[1741609908614,62.84050476,129.16,129.15,0.0001]
[1741609909422,62.84050476,129.16,129.12,0.03]
[1741609909423,100.31733752,129.16,129.12,0.03]
[1741609909597,93.88763752,129.13,129.12,0.03]
[1741609909800,93.88763752,129.13,129.1,0.03]
[1741609909801,20.28432314,129.11,129.1,0.03]
[1741609910000,38.933972,129.11,129.1,0.03]
[1741609910196,76.41080476,129.11,129.1,0.03]
[1741609911018,56.41080476,129.11,129.1,0.03]
[1741609911533,18.933972,129.11,129.1,0.03]
[1741609911822,56.41080476,129.11,129.1,0.03]
[1741609912220,64.15610476,129.11,129.1,0.03]
[1741609913320,18.933972,129.1,129.06,0.03]
[1741609913620,93.88763752,129.07,129.06,0.03]
[1741609914026,101.63533752,129.07,129.06,0.03]
[1741609915123,64.15850476,129.07,129.06,0.03]
[1741609917022,101.63533752,129.07,129.06,0.03]
[1741609917511,33.233972,129.06,128.97,21.5645]
[1741609917711,37.47683276,129.01,128.97,21.5645]
[1741609917914,37.47683276,128.98,128.93,0.03]
[1741609918109,37.47683276,128.98,128.93,37.50683276]
[1741609918304,7.89456157,129.0,128.93,20.03]
[1741609918305,37.61899433,128.99,128.93,20.03]
[1741609918521,0.14216157,128.99,128.94,37.47683276]
[1741609918720,37.47683276,128.98,128.93,57.50683276]
[1741609919101,0.14216157,128.99,128.95,37.47683276]
[1741609920040,0.14216157,128.99,128.93,20.03]
[1741609920251,0.14216157,128.99,128.95,37.47683276]
[1741609920531,37.61899433,128.98,128.93,20.03]
[1741609920725,0.14216157,128.99,128.95,37.47683276]
[1741609921831,0.14216157,129.0,128.96,37.47683276]
[1741609922835,0.14216157,129.0,128.93,20.03]
[1741609922836,37.61899433,128.98,128.93,57.50683276]
[1741609923015,37.47683276,128.97,128.93,0.03]
[1741609923218,37.61899433,128.95,128.93,0.03]
[1741609923412,0.14216157,128.95,128.93,0.03]
[1741609923619,81.1,128.97,128.93,37.50683276]
[1741609924025,118.57683276,128.97,128.93,0.03]
[1741609924220,37.61899433,128.96,128.93,0.03]
[1741609924428,81.1,128.97,128.93,0.03]
[1741609925038,81.1,128.97,128.95,37.47683276]
[1741609925228,14.3,128.99,128.93,0.03]
[1741609925229,45.22993276,128.98,128.93,0.03]
[1741609925431,18.933972,128.99,128.93,0.03]
[1741609925636,37.47683276,128.98,128.93,37.50683276]
[1741609925836,126.32913276,129.0,128.95,37.47683276]
[1741609926043,81.1,129.0,128.96,37.47683276]
[1741609926258,0.14216157,129.0,128.97,37.47683276]
[1741609926420,0.14216157,129.0,128.96,37.47683276]
[1741609926759,37.61899433,128.98,128.93,0.03]
[1741609926921,37.47683276,128.96,128.93,0.03]
[1741609927120,37.47683276,128.94,128.93,0.03]
[1741609927349,0.14216157,128.94,128.93,0.03]
[1741609928222,37.61899433,128.94,128.93,0.03]
[1741609928422,0.14216157,128.94,128.93,0.03]
[1741609928618,7.89766157,128.94,128.93,0.03]
[1741609928938,45.37449433,128.94,128.93,0.03]
[1741609929245,145.26630476,128.94,128.93,0.03]
[1741609929450,0.14216157,128.93,128.81,7.7813]
[1741609929623,0.14216157,128.9,128.82,37.47683276]
[1741609929948,81.1,128.92,128.88,37.47683276]
[1741609930244,81.1,128.94,128.85,20.0]
[1741609930437,0.14216157,128.94,128.9,37.47683276]
[1741609930636,99.74964886,128.96,128.91,37.47683276]
[1741609930637,45.23113276,128.96,128.91,37.47683276]
[1741609931041,37.61899433,128.97,128.91,37.47683276]
[1741609931243,0.14216157,128.96,128.93,0.03]
[1741609931443,126.32953276,128.99,128.93,37.50683276]
[1741609931745,0.14216157,128.98,128.93,37.50683276]
[1741609931947,37.47683276,128.99,128.94,37.47683276]
[1741609932124,6.1892,129.01,128.97,37.47683276]
[1741609932125,0.14216157,129.01,128.97,37.47683276]
[1741609932525,45.37039433,129.01,128.93,20.03]
[1741609932728,0.14216157,129.01,128.97,37.47683276]
[1741609932929,7.89356157,129.01,128.96,37.47683276]
[1741609933126,37.47683276,129.02,128.97,37.47683276]
[1741609933327,37.47683276,129.02,128.94,37.47683276]
[1741609933328,0.14216157,129.03,128.99,37.47683276]
[1741609933737,144.97548162,129.05,129.0,37.47683276]
[1741609933934,144.97548162,129.05,129.01,37.47683276]
[1741609933935,0.14216157,129.05,129.01,37.47683276]
[1741609934447,0.14216157,129.05,129.0,37.47683276]
[1741609934825,0.063,129.06,129.02,37.47683276]
[1741609935035,0.20516157,129.06,129.02,37.47683276]
[1741609935529,45.43029433,129.06,129.0,37.47683276]
[1741609935737,45.43029433,129.06,129.0,57.47683276]
[1741609935929,37.68199433,129.06,129.01,37.47683276]
[1741609936154,0.20516157,129.06,129.02,37.47683276]
[1741609936357,0.063,129.06,129.03,37.47683276]
[1741609936668,45.28823276,129.06,129.01,37.47683276]
[1741609936824,0.063,129.06,129.01,37.47683276]
[1741609937028,7.8113,129.06,129.01,37.47683276]
[1741609937229,45.28813276,129.06,129.01,37.47683276]
[1741609937648,7.8113,129.06,129.02,37.47683276]
[1741609939544,7.8113,129.06,129.01,37.47683276]
[1741609939858,0.063,129.06,129.03,37.47683276]
[1741609940644,0.063,129.06,129.05,37.47683276]
[1741609943839,0.063,129.06,129.05,74.95366552]
[1741609944245,0.063,129.06,129.05,37.47683276]
[1741609946065,45.36319433,129.13,129.05,37.47683276]
[1741609946066,0.14216157,129.13,129.05,74.95366552]
[1741609946271,81.1,129.15,129.06,37.47683276]
[1741609946436,81.1,129.15,129.12,37.47683276]
[1741609946637,37.61899433,129.15,129.1,37.47683276]
[1741609946860,0.14216157,129.12,129.04,10.3099469]
[1741609947054,37.61899433,129.12,129.07,57.47683276]
[1741609947246,0.14216157,129.12,129.08,37.47683276]
[1741609947551,0.14216157,129.14,129.07,20.0]
[1741609947760,37.47683276,129.13,129.08,37.47683276]
[1741609947946,45.22133276,129.13,129.08,37.47683276]
[1741609949337,37.47683276,129.11,129.04,10.3099469]
[1741609949548,18.933972,129.12,129.04,10.3099469]
[1741609949749,37.47683276,129.11,129.06,37.47683276]
[1741609950137,81.1,129.13,129.1,37.47683276]
[1741609950376,0.14216157,129.14,129.1,37.47683276]
[1741609952342,0.14216157,129.14,129.06,37.47683276]
[1741609952657,7.88576157,129.14,129.09,37.47683276]
[1741609953268,37.47683276,129.12,129.07,57.47683276]
[1741609953760,0.14216157,129.12,129.08,37.47683276]
[1741609953969,0.14216157,129.12,129.07,20.0]
[1741609953970,37.61899433,129.12,129.07,20.0]
[1741609954265,7.7453,129.11,129.07,37.47683276]
[1741609954560,7.88686157,129.12,129.08,37.47683276]
[1741609954778,45.36369433,129.12,129.07,37.47683276]
[1741609955290,37.47683276,129.1,129.05,37.47683276]
[1741609955485,37.47683276,129.11,129.06,37.47683276]
[1741609955773,56.26864319,129.11,129.06,37.50683276]
[1741609956155,0.14216157,129.1,129.06,37.50683276]
[1741609956374,7.7455,129.11,129.07,37.47683276]
[1741609956690,7.7455,129.11,129.06,37.50683276]
[1741609957069,7.7455,129.11,129.07,37.47683276]
[1741609957268,7.7441,129.13,129.1,37.47683276]
[1741609957474,7.7441,129.13,129.06,37.50683276]
[1741609957662,7.7441,129.13,129.09,37.47683276]
[1741609958064,7.8065,129.14,129.11,37.47683276]
[1741609958359,7.8065,129.14,129.1,37.47683276]
[1741609958952,7.8065,129.14,129.11,37.47683276]
[1741609959264,0.063,129.14,129.13,37.47683276]
[1741609961008,0.063,129.19,129.16,20.0]
[1741609961358,7.8037,129.19,129.15,20.0]
[1741609961555,45.28053276,129.19,129.14,37.47683276]
[1741609961758,45.28053276,129.19,129.13,37.47683276]
[1741609961961,45.28053276,129.19,129.14,37.47683276]
[1741609961962,7.8037,129.19,129.14,37.47683276]
[1741609962369,0.063,129.19,129.16,37.47683276]
[1741609962904,0.063,129.19,129.12,37.47683276]
[1741609963070,37.47683276,129.17,129.13,20.0]
[1741609963272,0.14216157,129.18,129.13,20.0]
[1741609963273,37.61899433,129.18,129.13,37.47683276]
[1741609963471,0.14216157,129.18,129.13,37.47683276]
[1741609963677,37.61899433,129.18,129.13,37.47683276]
[1741609964179,14.1419,129.19,129.15,37.47683276]
[1741609964378,14.1419,129.19,129.16,37.47683276]
[1741609964592,7.804,129.19,129.16,37.47683276]
[1741609964887,7.804,129.19,129.15,37.47683276]
[1741609965091,7.804,129.19,129.14,37.47683276]
[1741609965465,45.28083276,129.19,129.14,37.47683276]
[1741609965667,0.14216157,129.18,129.14,37.47683276]
[1741609966079,7.804,129.19,129.15,37.47683276]
[1741609966977,7.804,129.19,129.13,20.0]
[1741609967175,7.804,129.19,129.15,37.47683276]
[1741609968181,27.1553,129.19,129.15,37.47683276]
[1741609968500,7.804,129.19,129.16,37.47683276]
[1741609969078,7.804,129.19,129.13,20.0]
[1741609969275,7.804,129.19,129.15,37.47683276]
[1741609969700,0.063,129.19,129.18,37.47683276]
[1741609970608,0.063,129.19,129.17,37.47683276]
[1741609970905,0.063,129.19,129.16,37.47683276]
[1741609971088,0.063,129.19,129.15,57.47683276]
[1741609971876,37.53983276,129.19,129.14,37.47683276]
[1741609972306,0.14216157,129.18,129.13,57.47683276]
[1741609972478,7.88386157,129.17,129.12,37.47683276]
[1741609972984,64.71499433,129.17,129.12,37.47683276]
[1741609973308,18.933972,129.12,129.06,37.50683276]
[1741609973486,37.47683276,129.11,129.06,37.50683276]
[1741609973686,0.14216157,129.1,129.06,37.50683276]
[1741609973902,37.47683276,129.1,129.06,0.03]
[1741609974092,37.61899433,129.11,129.06,37.50683276]
[1741609974491,7.7459,129.1,129.07,37.47683276]
[1741609974975,7.7459,129.1,129.08,37.47683276]
[1741609975299,7.88756157,129.11,129.09,37.47683276]
[1741609975485,6.2278,129.15,129.09,37.47683276]
[1741609975690,26.675672,129.17,129.12,37.47683276]
[1741609975887,46.029972,129.17,129.1,37.47683276]
[1741609976194,0.14216157,129.14,129.1,37.47683276]
[1741609976507,7.7441,129.13,129.09,37.47683276]
[1741609976688,56.41080476,129.12,129.06,20.03]
[1741609976881,37.47683276,129.11,129.06,37.50683276]
[1741609977585,56.41080476,129.12,129.06,37.50683276]
[1741609977786,18.933972,129.12,129.07,37.47683276]
[1741609977988,18.933972,129.12,129.08,37.47683276]
[1741609978404,88.8441,129.13,129.1,37.47683276]
[1741609978594,126.61863276,129.18,129.12,37.47683276]
[1741609978796,7.7417,129.17,129.14,37.47683276]
[1741609979283,7.7417,129.17,129.13,37.47683276]
[1741609979684,7.8042,129.18,129.15,37.47683276]
[1741609979898,7.8042,129.18,129.16,37.47683276]
[1741609980093,45.28103276,129.18,129.12,20.0]
[1741609980404,45.28103276,129.18,129.13,37.47683276]
[1741609980910,64.63383276,129.18,129.13,37.47683276]
[1741609981110,0.14216157,129.17,129.13,37.47683276]
[1741609981919,27.157,129.18,129.16,37.47683276]
[1741609981920,0.063,129.18,129.16,37.47683276]
[1741609982109,7.8042,129.18,129.16,37.47683276]
[1741609982406,7.8042,129.18,129.15,37.47683276]
[1741609982794,0.063,129.18,129.14,37.47683276]
[1741609983010,37.68199433,129.18,129.12,20.0]
[1741609983314,37.68199433,129.18,129.13,37.47683276]
[1741609983508,0.20516157,129.18,129.14,37.47683276]
[1741609983702,56.47380476,129.18,129.13,37.47683276]
[1741609984216,18.996972,129.18,129.13,37.47683276]
[1741609985209,18.996972,129.18,129.1,1.5404]
[1741609985210,7.7417,129.17,129.14,37.47683276]
[1741609985403,7.7417,129.17,129.15,37.47683276]
[1741609985707,0.063,129.18,129.15,37.47683276]
[1741609985914,7.8043,129.18,129.15,37.47683276]
[1741609986703,7.8043,129.18,129.14,37.47683276]
[1741609987091,19.4158,129.18,129.13,37.47683276]
[1741609987305,56.89263276,129.18,129.1,1.5404]
[1741609987497,19.4158,129.18,129.13,37.47683276]
[1741609987822,0.063,129.18,129.14,37.47683276]
[1741609988116,0.063,129.18,129.1,1.5404]
[1741609988117,37.61899433,129.16,129.1,37.47683276]
[1741609988317,37.61899433,129.14,129.06,39.08033276]
[1741609988615,37.47683276,129.12,129.07,37.47683276]
[1741609988814,0.14216157,129.13,129.08,37.47683276]
[1741609989019,37.47683276,129.16,129.11,37.47683276]
[1741609989207,7.7429,129.15,129.11,37.47683276]
[1741609989717,37.61899433,129.17,129.13,37.47683276]
[1741609989718,7.742,129.17,129.13,37.47683276]
[1741609990013,64.57313276,129.17,129.1,20.0]
[1741609990191,0.14216157,129.16,129.11,37.47683276]
[1741609990391,37.47683276,129.15,129.06,39.08033276]
[1741609990591,37.47683276,129.14,129.08,37.47683276]
[1741609991032,0.14216157,129.13,129.08,37.47683276]
[1741609991193,7.7447,129.12,129.08,37.47683276]
[1741609991393,64.58333276,129.12,129.07,37.47683276]
[1741609991687,64.58333276,129.12,129.06,0.03]
[1741609991688,37.47683276,129.1,129.06,0.03]
[1741609992527,44.00759433,129.11,129.06,0.03]
[1741609993127,7.7459,129.1,129.06,37.50683276]
[1741609993326,7.7459,129.1,129.07,37.47683276]
[1741609993628,7.7453,129.12,129.08,37.47683276]
[1741609993800,81.1,129.13,129.09,37.47683276]
[1741609994135,14.24196157,129.14,129.1,37.47683276]
[1741609994925,7.88586157,129.14,129.1,37.47683276]
[1741609995727,37.47683276,129.13,129.08,37.47683276]
[1741609995919,37.47683276,129.12,129.06,0.03]
[1741609996105,37.47683276,129.11,129.06,0.03]
[1741609996308,37.47683276,129.09,129.06,0.03]
[1741609996632,56.41080476,129.07,129.06,0.03]
[1741609997026,56.41080476,129.07,129.0,37.50683276]
[1741609997219,37.47683276,129.05,129.0,37.50683276]
[1741609997425,37.47683276,129.03,129.0,0.03]
[1741609997726,7.7507,129.02,129.0,0.03]
[1741609997908,0.14216157,129.01,129.0,0.03]
[1741609998119,37.61899433,129.01,129.0,0.03]
[1741609998309,56.41080476,129.01,129.0,0.03]
[1741609999619,64.16210476,129.01,129.0,0.03]
[1741610000315,56.41080476,129.01,129.0,0.03]
[1741610000627,64.16210476,129.01,129.0,0.03]
[1741610001607,0.14216157,128.99,128.93,0.03]
[1741610001808,37.61899433,128.95,128.93,0.03]
[1741610002025,0.14216157,128.95,128.93,0.03]
[1741610002510,137.51080476,128.94,128.93,0.03]
[1741610003446,18.933972,128.93,128.87,0.03]
[1741610003609,0.14216157,128.88,128.87,0.03]
[1741610005233,81.1,128.9,128.87,0.03]
[1741610005409,88.8579,128.9,128.87,0.03]
[1741610005609,126.33473276,128.9,128.87,0.03]
[1741610005830,118.57683276,128.9,128.87,0.03]
[1741610006046,81.1,128.9,128.87,37.50683276]
[1741610006813,81.1,128.9,128.87,0.03]
[1741610007231,118.57683276,128.9,128.87,0.03]
[1741610007519,107.64991043,128.9,128.87,0.03]
[1741610007725,0.14216157,128.89,128.87,0.03]
[1741610007928,37.61899433,128.89,128.87,0.03]
[1741610008215,0.14216157,128.89,128.87,0.03]